bitfinex/quotes_ETHUSD_20241106
["timestamp","ask_amount","ask_price","bid_price","bid_amount"]
[1730892910020,4.57318,2633.2,2632.7,3.79829]
[1730892910515,0.7755,2633.2,2632.9,3.79799]
[1730892910671,0.7755,2633.2,2632.7,0.7527]
[1730892910872,0.7755,2633.2,2632.7,4.3294561]
[1730892911202,0.7755,2633.2,2632.8,3.79822]
[1730892911386,0.8222,2633.5,2633.0,3.79787]
[1730892911590,0.8222,2633.5,2633.1,3.79773]
[1730892912205,0.7722,2633.5,2633.1,3.79773]
[1730892912523,0.7722,2633.5,2632.9,0.7508]
[1730892912709,0.7722,2633.5,2633.0,0.454892]
[1730892913017,0.7722,2633.5,2633.1,3.79771]
[1730892913378,3.79673,2633.9,2633.3,3.79742]
[1730892913689,3.79622,2634.2,2633.6,7.59407]
[1730892913905,3.79636,2634.1,2633.4,7.67053234]
[1730892914074,3.79636,2634.1,2633.4,4.64025557]
[1730892914281,3.79622,2634.2,2633.6,3.79701]
[1730892914604,3.79622,2634.2,2633.4,1.52235323]
[1730892914923,3.79653,2634.0,2633.5,3.79714]
[1730892915213,3.79622,2634.2,2633.5,3.79714]
[1730892915214,0.7769,2634.1,2633.6,3.79707]
[1730892915415,4.57334,2634.1,2633.4,5.31970323]
[1730892915715,4.60346,2633.9,2633.3,3.79745]
[1730892915920,0.8068,2633.9,2633.4,3.79728]
[1730892916215,3.79688,2633.8,2633.1,7.59538]
[1730892916390,4.60346,2633.9,2633.3,3.79743]
[1730892917271,4.60346,2633.9,2632.9,0.7652]
[1730892917272,3.79683,2633.8,2633.1,7.59535]
[1730892917473,3.79697,2633.7,2633.2,0.759535]
[1730892917687,3.79697,2633.7,2633.1,3.79766]
[1730892917917,3.79683,2633.8,2633.1,3.79766]
[1730892917918,4.6007,2633.6,2633.1,3.79766]
[1730892918072,4.6007,2633.6,2632.9,3.798]
[1730892918421,3.79744,2633.4,2632.7,4.60107]
[1730892918577,3.79744,2633.4,2632.8,0.460107]
[1730892918772,3.79725,2633.5,2632.9,3.79809]
[1730892920019,3.7976,2633.3,2632.8,0.460107]
[1730892920207,0.7524,2633.2,2632.7,7.59658]
[1730892920380,0.7524,2633.2,2632.8,0.759658]
[1730892920576,0.7524,2633.2,2632.9,3.79802]
[1730892921022,3.79708,2633.6,2633.0,3.79794]
[1730892922010,3.79722,2633.5,2633.0,3.79794]
[1730892922220,3.79708,2633.6,2633.0,3.79794]
[1730892922426,3.79724,2633.5,2632.9,3.79802]
[1730892924345,0.454948,2633.6,2633.0,3.79794]
[1730892924495,4.252028,2633.6,2633.0,7.59581]
[1730892924701,4.252028,2633.6,2633.0,3.79787]
[1730892925204,8.049218,2633.6,2633.0,3.79787]
[1730892925403,3.7973,2633.5,2632.9,3.79808]
[1730892925598,4.6774728,2633.5,2632.9,3.79808]
[1730892925842,0.8801728,2633.5,2632.9,3.79808]
[1730892926043,3.79737,2633.4,2632.9,3.79808]
[1730892926247,7.59482,2633.4,2632.7,3.79824]
[1730892926566,4.60593,2633.3,2632.5,3.79856]
[1730892926772,4.60593,2633.3,2632.7,3.79827]
[1730892926909,3.79766,2633.2,2632.7,3.79827]
[1730892927609,0.8084,2633.3,2632.7,7.59657]
[1730892927858,4.60594,2633.3,2632.7,3.79827]
[1730892928024,0.8084,2633.3,2632.9,3.79808]
[1730892929459,0.8084,2633.3,2632.7,3.79825]
[1730892930030,3.79766,2633.2,2632.7,3.79825]
[1730892930255,0.8084,2633.3,2632.7,4.557934]
[1730892930441,0.8084,2633.3,2632.7,3.79825]
[1730892930622,0.8084,2633.3,2632.8,3.79816]
[1730892930823,0.7814,2633.5,2633.0,3.79789]
[1730892931542,0.7814,2633.5,2632.9,4.54881]
[1730892931718,0.7814,2633.5,2632.9,4.5488]
[1730892932233,0.7814,2633.5,2633.0,0.09529643]
[1730892932617,0.7814,2633.5,2633.0,3.89312643]
[1730892933228,0.7857,2633.7,2633.4,3.79726]
[1730892933429,0.7857,2633.9,2633.0,0.93948907]
[1730892933662,0.7857,2634.1,2633.6,3.79697]
[1730892933860,0.7857,2634.1,2633.8,3.79669]
[1730892934222,0.7857,2634.1,2633.9,0.09471043]
[1730892934773,0.7857,2634.4,2633.9,3.79664]
[1730892935055,0.7857,2634.4,2634.0,0.09486741]
[1730892935459,0.7857,2634.7,2634.2,3.79619]
[1730892935926,0.7857,2634.7,2634.3,0.09473877]
[1730892936127,4.58126,2634.7,2634.1,3.79635]
[1730892936445,0.7857,2634.7,2634.0,0.753]
[1730892936647,3.79581,2634.5,2634.2,0.09478164]
[1730892936847,4.633535,2634.5,2634.1,0.09482452]
[1730892937168,0.7883,2634.3,2633.8,3.79669]
[1730892937372,0.7883,2634.3,2634.2,0.09478164]
[1730892937671,3.7965,2634.1,2633.5,3.79713]
[1730892938455,3.7966,2634.0,2633.3,4.59959]
[1730892938618,4.58445,2634.3,2633.6,3.79697]
[1730892938823,0.7883,2634.3,2633.7,3.79685]
[1730892939171,0.7627,2634.6,2634.0,3.7964]
[1730892939321,4.55841,2634.6,2634.0,3.7965]
[1730892939522,0.7627,2634.6,2634.1,3.79628]
[1730892941120,0.7627,2634.6,2634.2,3.79619]
[1730892941321,4.55806,2635.0,2634.3,3.79603]
[1730892941840,4.55806,2635.0,2634.4,3.79591]
[1730892942166,0.463,2635.0,2634.5,3.79571]
[1730892942336,4.25808,2635.0,2634.5,0.7527622]
[1730892942663,0.463,2635.0,2634.5,0.7527622]
[1730892942867,3.79528,2634.9,2634.3,4.58645]
[1730892943022,3.79538,2634.8,2634.1,0.379628]
[1730892943362,3.79557,2634.7,2634.2,0.09054358]
[1730892943568,3.79538,2634.8,2634.2,3.88675358]
[1730892943753,3.79538,2634.8,2634.2,3.88665358]
[1730892944074,3.79516,2635.0,2634.3,3.79603]
[1730892944229,3.79494,2635.1,2634.3,3.79607]
[1730892944572,3.79494,2635.1,2634.5,3.79578]
[1730892944919,3.79494,2635.1,2634.6,0.08735101]
[1730892945123,4.58134,2635.1,2634.6,0.08735101]
[1730892945665,3.79509,2635.0,2634.6,0.08735101]
[1730892945827,3.79509,2635.0,2634.4,3.79592]
[1730892946028,3.79509,2635.0,2634.5,0.79142692]
[1730892946237,3.79547,2634.8,2634.5,0.08739388]
[1730892946623,3.79547,2634.8,2634.1,3.79627]
[1730892946827,3.79547,2634.8,2634.3,3.79607]
[1730892947140,3.79547,2634.8,2634.4,0.08743675]
[1730892947744,3.79506,2635.0,2634.4,3.88332675]
[1730892947942,3.79506,2635.0,2634.5,3.79573]
[1730892948145,4.58133,2635.1,2634.5,3.79573]
[1730892948374,4.58133,2635.1,2634.6,0.08714695]
[1730892948540,4.58133,2635.1,2634.5,3.79573]
[1730892948742,4.58133,2635.1,2634.7,0.08710408]
[1730892949071,3.79526,2634.9,2634.8,0.08706122]
[1730892949275,3.79526,2634.9,2634.4,4.56382968]
[1730892949440,3.79514,2635.0,2634.8,0.08706122]
[1730892949647,3.79514,2635.0,2634.3,3.79606]
[1730892949847,3.79521,2634.9,2634.3,3.79606]
[1730892950305,3.79543,2634.8,2634.2,3.7962]
[1730892950607,3.79521,2634.9,2634.3,0.37962]
[1730892950764,3.79521,2634.9,2634.4,3.7959]
[1730892951512,3.79528,2634.9,2634.3,3.79605]
[1730892952010,3.79508,2635.0,2634.5,0.762]
[1730892952219,3.79508,2635.0,2634.5,4.55777]
[1730892952711,4.58144,2635.1,2634.5,4.55777]
[1730892952900,3.79507,2635.0,2634.5,5.393152]
[1730892953098,4.58133,2635.1,2634.5,5.393072]
[1730892953310,0.7864,2635.1,2634.6,3.87143366]
[1730892954076,4.58133,2635.1,2634.5,5.393072]
[1730892954277,4.58133,2635.1,2634.5,9.188772]
[1730892954473,8.37634,2635.1,2634.5,5.393072]
[1730892954922,3.79534,2634.9,2634.5,1.597382]
[1730892955290,3.79534,2634.9,2634.5,0.762]
[1730892955489,3.79507,2635.0,2634.5,4.55778]
[1730892955879,0.7864,2635.1,2634.3,0.8078]
[1730892956210,0.7864,2635.1,2634.1,3.79626]
[1730892956211,0.7864,2635.1,2634.1,3.79625]
[1730892956414,3.79531,2634.9,2634.3,3.79602]
[1730892956588,3.79551,2634.7,2634.3,0.759227]
[1730892957536,0.7864,2635.1,2634.0,0.8078]
[1730892957734,4.3208847,2635.3,2634.0,0.8078]
[1730892957735,3.79572,2634.6,2634.0,0.8078]
[1730892957963,3.79589,2634.5,2634.0,0.8078]
[1730892958367,3.79572,2634.6,2634.1,3.88372399]
[1730892958664,3.79572,2634.6,2634.1,0.08738399]
[1730892958867,3.79579,2634.5,2634.1,0.08738399]
[1730892959267,3.79572,2634.6,2634.1,3.88373399]
[1730892959572,7.59146,2634.6,2634.1,3.88373399]
[1730892959729,3.79572,2634.6,2634.1,3.88373399]
[1730892959929,3.79572,2634.6,2634.1,4.73255139]
[1730892960129,0.7733,2634.7,2634.1,4.73255139]
[1730892960325,3.79566,2634.6,2634.1,4.73255139]
[1730892960769,3.79597,2634.4,2634.1,0.93620139]
[1730892961122,0.7733,2634.7,2634.1,0.08738399]
[1730892961343,3.79529,2634.9,2634.3,3.796]
[1730892961538,3.79546,2634.8,2634.2,3.79621]
[1730892961743,3.79546,2634.8,2634.4,0.08730826]
[1730892961983,3.79529,2634.9,2634.3,0.08735113]
[1730892962186,3.79552,2634.7,2634.5,0.08726539]
[1730892962485,3.79552,2634.7,2634.1,3.79629]
[1730892962695,3.79525,2634.9,2634.1,0.0759163]
[1730892962872,3.0,2635.4,2634.1,0.0759163]
[1730892962873,16.99423,2635.5,2634.2,0.8074]
[1730892963193,16.99423,2635.5,2634.1,7.3967957]
[1730892963194,4.61423,2635.5,2634.8,4.59537]
[1730892963490,4.61641,2635.8,2635.2,3.79472]
[1730892963644,4.61641,2635.8,2635.1,3.7949]
[1730892963859,0.8225,2635.8,2635.2,0.07588905]
[1730892964170,4.62202,2636.0,2635.4,0.7989]
[1730892964359,4.62202,2636.0,2635.4,0.87478133]
[1730892964558,0.8283,2636.0,2635.4,0.7989]
[1730892964763,3.79385,2635.9,2635.4,0.7989]
[1730892965042,0.8283,2636.0,2635.5,3.79432]
[1730892965177,4.58814,2636.2,2635.5,3.87020132]
[1730892965357,0.7948,2636.2,2635.5,3.79432]
[1730892965557,4.58814,2636.2,2635.6,3.79405]
[1730892965793,0.7948,2636.2,2635.4,0.7989]
[1730892966017,1.253606,2636.2,2635.5,3.79424]
[1730892966673,5.047076,2636.2,2635.6,3.79419]
[1730892966997,3.79349,2636.1,2635.5,3.79424]
[1730892967198,1.253606,2636.2,2635.5,3.79424]
[1730892967492,5.047016,2636.2,2635.5,3.79424]
[1730892967703,4.58821,2636.2,2635.5,4.56616963]
[1730892967861,0.7948,2636.2,2635.7,3.79404]
[1730892968661,3.79326,2636.3,2635.7,3.79404]
[1730892969477,7.58655,2636.3,2635.7,3.79404]
[1730892969704,3.79334,2636.2,2635.5,8.36047963]
[1730892969914,3.7935,2636.1,2635.6,0.82041957]
[1730892970290,0.8123,2636.4,2635.6,0.82041957]
[1730892970478,0.8123,2636.4,2635.5,3.79423]
[1730892970479,3.79327,2636.3,2635.5,3.79423]
[1730892970811,3.79327,2636.3,2635.6,3.79409]
[1730892970971,3.79335,2636.2,2635.6,3.79409]
[1730892971599,3.79327,2636.3,2635.6,3.79409]
[1730892971800,7.5866,2636.3,2635.7,0.758832]
[1730892972010,3.79327,2636.3,2635.7,0.758832]
[1730892972199,3.79327,2636.3,2635.5,3.79423]
[1730892972404,3.79349,2636.1,2635.5,3.79423]
[1730892972888,3.79349,2636.1,2635.5,7.5885]
[1730892973090,3.79349,2636.1,2635.5,3.79423]
[1730892973291,3.79349,2636.1,2635.6,0.08491015]
[1730892973483,3.79349,2636.1,2635.6,0.55271417]
[1730892974185,3.79327,2636.3,2635.6,0.55271417]
[1730892974387,3.79342,2636.2,2635.6,0.55271417]
[1730892975030,3.79342,2636.2,2635.6,4.34681417]
[1730892976078,7.5872,2636.1,2635.6,0.55271417]
[1730892976307,3.79358,2636.1,2635.6,3.87910015]
[1730892976507,3.79358,2636.1,2635.6,0.08491015]
[1730892976850,3.79364,2636.0,2635.5,3.79434]
[1730892977012,3.79377,2635.9,2635.7,0.08435742]
[1730892977343,3.79377,2635.9,2635.8,0.08384625]
[1730892977651,3.79399,2635.8,2635.4,0.7989]
[1730892977853,3.79415,2635.7,2635.4,0.7989]
[1730892978144,3.79373,2636.0,2635.4,0.7989]
[1730892978346,3.79377,2635.9,2635.4,0.7989]
[1730892978555,3.79393,2635.8,2635.4,0.7989]
[1730892978720,3.79372,2636.0,2635.4,0.7989]
[1730892978928,0.460462,2636.0,2635.4,0.7989]
[1730892979143,0.460462,2636.0,2635.1,10.5896]
[1730892979144,3.79422,2635.6,2635.2,0.8041]
[1730892979453,3.79395,2635.8,2635.2,0.8041]
[1730892979613,3.79377,2635.9,2635.3,3.79449]
[1730892979814,3.79393,2635.8,2635.2,0.8041]
[1730892980014,3.79393,2635.8,2635.2,4.59878]
[1730892980241,3.79393,2635.8,2635.3,4.254508]
[1730892980515,7.58742,2636.0,2635.4,3.79448]
[1730892980852,3.79377,2635.9,2635.3,4.254508]
[1730892981007,3.79369,2636.0,2635.3,4.254508]
[1730892981207,3.8109,2636.2,2635.3,0.459878]
[1730892981406,3.8109,2636.2,2635.3,3.79456]
[1730892981407,3.79362,2636.0,2635.3,3.79456]
[1730892981651,3.79379,2635.9,2635.3,7.58912]
[1730892982454,3.79393,2635.8,2635.2,4.59884]
[1730892982623,3.79393,2635.8,2635.3,3.79461]
[1730892982825,3.79393,2635.8,2635.3,7.58915]
[1730892983039,3.79377,2635.9,2635.3,8.428475]
[1730892983208,3.79391,2635.8,2635.3,4.633865]
[1730892983415,3.79391,2635.8,2635.3,8.428425]
[1730892983745,3.79377,2635.9,2635.3,4.633935]
[1730892984055,3.79377,2635.9,2635.3,8.428455]
[1730892984217,3.79377,2635.9,2635.4,0.7530242]
[1730892984415,3.79377,2635.9,2635.4,4.5474742]
[1730892984643,3.79399,2635.8,2635.4,0.7530242]
[1730892984823,3.79377,2635.9,2635.4,0.7530242]
[1730892985038,3.79319,2636.3,2635.5,0.7782]
[1730892985361,0.7522,2636.7,2636.1,0.7782]
[1730892985510,3.79243,2636.9,2636.3,3.79308]
[1730892985710,3.7927,2636.7,2636.1,4.5716]
[1730892986015,3.79277,2636.6,2636.1,5.408127]
[1730892986253,0.7522,2637.0,2636.2,3.79326]
[1730892986254,3.7924,2636.9,2636.2,3.79326]
[1730892986459,3.7924,2636.9,2636.4,3.79304]
[1730892986734,3.79226,2637.0,2636.5,4.56128]
[1730892986940,3.7922,2637.0,2636.5,4.56128]
[1730892987851,3.7924,2636.9,2636.5,0.7684]
[1730892988021,3.7922,2637.0,2636.5,0.7684]
[1730892988524,3.7922,2637.0,2636.6,0.08283576]
[1730892988853,3.79233,2636.9,2636.6,0.08283576]
[1730892989151,4.550783,2636.9,2636.6,0.08283576]
[1730892989513,3.79256,2636.8,2636.6,0.08283576]
[1730892989953,0.758453,2636.9,2636.6,0.08283576]
[1730892990114,3.79249,2636.8,2636.6,0.08283576]
[1730892990826,3.79244,2636.9,2636.6,0.08283576]
[1730892991172,3.79241,2636.9,2636.3,0.7684]
[1730892991449,3.79241,2636.9,2636.7,0.08283069]
[1730892991635,3.79241,2636.9,2636.3,5.1012977]
[1730892991812,3.79241,2636.9,2636.8,0.08278789]
[1730892992010,3.79241,2636.9,2636.3,5.1012977]
[1730892992215,3.79241,2636.9,2636.8,0.08278789]
[1730892992451,3.79241,2636.9,2636.3,1.3082177]
[1730892992613,3.79241,2636.9,2636.8,0.08278789]
[1730892992813,3.79241,2636.9,2636.3,5.1013377]
[1730892993026,3.79241,2636.9,2636.8,0.08278789]
[1730892993227,3.79215,2637.1,2636.3,4.56159]
[1730892993431,3.79239,2636.9,2636.8,0.08274639]
[1730892993719,3.79257,2636.8,2636.3,0.7684]
[1730892994054,3.79262,2636.7,2636.3,0.7684]
[1730892994226,3.79286,2636.6,2636.4,0.08291759]
[1730892995260,3.79258,2636.8,2636.1,0.7756]
[1730892995458,3.79273,2636.7,2636.5,0.08287479]
[1730892995754,3.79312,2636.4,2636.1,0.7756]
[1730892996419,3.79292,2636.5,2636.1,0.7756]
[1730892996615,0.8035,2636.6,2636.1,0.7756]
[1730892996962,3.79277,2636.6,2636.1,0.7756]
[1730892997122,3.79276,2636.6,2636.1,0.7756]
[1730892997620,3.79298,2636.5,2636.1,0.7756]
[1730892998144,3.79298,2636.5,2636.1,43.7756]
[1730892999742,3.79316,2636.4,2636.1,43.7756]
[1730893000267,3.79291,2636.5,2636.1,43.7756]
[1730893001081,3.7929,2636.5,2636.1,43.7756]
[1730893001774,0.8184,2636.9,2636.1,43.7756]
[1730893001964,4.61075,2636.9,2636.2,3.79327]
[1730893002267,4.61075,2636.9,2636.2,7.58646]
[1730893002640,3.7925,2636.8,2636.1,43.7756]
[1730893002843,3.79264,2636.7,2636.1,47.56907]
[1730893003155,3.79264,2636.7,2636.2,0.08310508]
[1730893003668,3.79249,2636.8,2636.2,3.87642508]
[1730893004972,3.79265,2636.7,2636.2,0.08310508]
[1730893005167,3.79281,2636.6,2636.2,0.08310508]
[1730893005939,3.79293,2636.5,2636.2,0.08310508]
[1730893006459,3.79276,2636.7,2636.2,0.08310508]
[1730893006977,3.7929,2636.5,2636.2,0.08310508]
[1730893007643,3.79278,2636.6,2636.2,0.08310508]
[1730893008247,3.79292,2636.5,2636.2,0.08310508]
[1730893008479,3.79276,2636.7,2636.2,0.08310508]
[1730893008791,3.79286,2636.6,2636.2,0.08310508]
[1730893009078,3.79297,2636.5,2636.2,0.08310508]
[1730893011141,3.79313,2636.4,2636.2,0.08310508]
[1730893011334,3.79297,2636.5,2636.2,0.08310508]
[1730893012845,4.61083,2636.9,2636.2,0.08310508]
[1730893013071,3.79263,2636.7,2636.2,0.08310508]
[1730893015793,3.79278,2636.6,2636.2,0.08310508]
[1730893017287,3.8184,2636.9,2636.2,0.08310508]
[1730893017469,3.79289,2636.6,2636.2,0.08310508]
[1730893017687,3.79297,2636.5,2636.2,0.08310508]
[1730893018000,3.79269,2636.7,2636.2,0.08310508]
[1730893018903,4.20024,2636.9,2636.2,0.08310508]
[1730893019109,3.79257,2636.8,2636.2,0.08310508]
[1730893019281,3.79257,2636.8,2636.2,3.87642508]
[1730893021472,3.7927,2636.7,2636.2,0.08310508]
[1730893021673,0.46111,2636.7,2636.2,0.08310508]
[1730893021881,3.79319,2636.3,2636.2,0.08310508]
[1730893022376,3.79301,2636.5,2636.2,0.08310508]
[1730893022573,3.7924,2636.9,2636.2,0.08310508]
[1730893022772,0.8262,2637.1,2636.4,0.7737]
[1730893022773,3.79251,2636.8,2636.4,0.7737]
[1730893023203,3.79271,2636.7,2636.5,0.08054856]
[1730893023601,3.79271,2636.7,2636.2,0.8198]
[1730893023895,3.79236,2636.9,2636.2,4.61313]
[1730893024111,3.79264,2636.7,2636.2,0.8198]
[1730893024277,3.79285,2636.6,2636.3,0.08063418]
[1730893024473,4.171904,2636.7,2636.3,0.08063418]
[1730893024474,3.79264,2636.7,2636.3,0.08063418]
[1730893024990,3.79301,2636.5,2636.3,0.08063418]
[1730893025177,3.79276,2636.6,2636.3,0.08063418]
[1730893025713,7.58561,2636.6,2636.3,0.08063418]
[1730893026074,3.79276,2636.6,2636.3,0.08063418]
[1730893026598,3.79304,2636.5,2636.3,0.08063418]
[1730893026907,3.79304,2636.5,2636.1,43.0]
[1730893027117,3.79271,2636.7,2636.2,0.0806356]
[1730893027330,3.79276,2636.6,2636.2,0.0806356]
[1730893028342,3.79297,2636.5,2636.2,0.0806356]
[1730893028915,3.79319,2636.3,2636.2,0.0806356]
[1730893029516,4.58549,2636.3,2636.1,43.0]
[1730893029689,3.79333,2636.2,2636.1,43.0]
[1730893030617,3.79333,2636.2,2636.1,42.982968]
[1730893030924,3.79333,2636.2,2636.1,43.05718126]
[1730893031088,5.010519,2636.2,2636.1,43.05718126]
[1730893031284,8.010519,2636.2,2636.1,43.05718126]
[1730893032723,8.761219,2636.2,2636.1,43.05718126]
[1730893033089,8.761219,2636.2,2636.1,42.70370258]
[1730893033315,9.311219,2636.2,2636.1,40.5452077]
[1730893033718,13.6421037,2636.2,2636.1,38.2932189]
[1730893033892,13.6421037,2636.2,2636.1,34.52305062]
[1730893034431,13.6521037,2636.2,2636.1,19.31625899]
[1730893034723,26.0976502,2636.2,2636.1,18.02116206]
[1730893034893,21.7767655,2636.2,2636.1,18.02116206]
[1730893035100,21.7767655,2636.2,2636.1,17.63398865]
[1730893035305,26.0976502,2636.2,2636.1,17.63398865]
[1730893035713,26.0321037,2636.2,2636.1,17.63398865]
[1730893037117,26.0321037,2636.2,2636.1,4.30467494]
[1730893037321,31.0281037,2636.2,2636.1,4.23046168]
[1730893037927,31.0281037,2636.2,2636.1,1.68e-06]
[1730893038095,3.79457,2635.4,2634.7,0.7827]
[1730893038298,3.7946,2635.4,2634.8,0.8413347]
[1730893038685,3.79475,2635.3,2634.8,0.8413347]
[1730893039127,3.79494,2635.1,2634.8,0.8413347]
[1730893040234,8.34116,2635.3,2634.8,0.8413347]
[1730893040399,3.79473,2635.3,2634.8,0.8413347]
[1730893040730,3.79479,2635.2,2634.8,0.8413347]
[1730893040934,3.79449,2635.4,2634.8,0.8413347]
[1730893041227,3.79478,2635.2,2634.8,1.31261052]
[1730893041441,3.79458,2635.4,2634.8,1.31261052]
[1730893041597,3.79435,2635.5,2634.9,0.7544]
[1730893041793,3.0,2635.7,2635.0,0.8146]
[1730893041794,6.79417,2635.7,2635.0,0.8146]
[1730893041995,0.7673,2636.1,2635.3,3.79449]
[1730893042195,4.56043,2636.4,2635.7,0.8146]
[1730893042416,3.79312,2636.4,2635.7,4.60863]
[1730893042622,3.79312,2636.4,2635.8,0.06930627]
[1730893044020,0.758573,2636.5,2635.8,0.06930627]
[1730893044339,4.551483,2636.5,2635.8,3.7939]
[1730893044505,3.79311,2636.4,2635.8,0.74162438]
[1730893044703,3.79311,2636.4,2635.9,0.06926344]
[1730893044925,3.79311,2636.4,2635.7,4.60856]
[1730893045163,6.79291,2636.5,2635.8,3.86321627]
[1730893045335,3.79308,2636.4,2635.8,0.06930627]
[1730893045536,3.79286,2636.6,2636.0,0.7712]
[1730893045847,3.79251,2636.8,2636.1,0.8294]
[1730893046034,7.5851,2636.8,2636.1,4.6920178]
[1730893046237,3.79251,2636.8,2636.1,8.4854178]
[1730893046547,8.40437,2637.0,2636.2,3.79325]
[1730893046731,3.79237,2636.9,2636.2,0.81392143]
[1730893047065,3.79202,2637.2,2636.5,3.79287]
[1730893047343,3.79202,2637.2,2636.3,0.8294]
[1730893047344,3.79222,2637.0,2636.6,0.06860694]
[1730893047549,0.00247557,2638.0,2637.0,3.80218]
[1730893047730,0.00247557,2638.0,2637.9,4.62029]
[1730893047906,0.00247557,2638.0,2637.9,4.687984]
[1730893048103,0.00247557,2638.0,2637.9,0.897094]
[1730893048315,0.00247557,2638.0,2637.9,4.62029]
[1730893048533,0.00247557,2638.0,2637.9,0.89662866]
[1730893048735,0.00247557,2638.0,2637.5,0.8294]
[1730893049008,0.00247557,2638.0,2637.6,0.06735695]
[1730893049445,0.00247557,2638.0,2637.5,0.8294]
[1730893049615,0.00247557,2638.0,2637.7,0.06731418]
[1730893049801,0.00247557,2638.0,2637.6,3.79122]
[1730893050007,0.00247557,2638.0,2637.8,0.06727142]
[1730893050209,0.00247557,2638.0,2637.5,4.50578664]
[1730893050422,0.00247557,2638.0,2637.5,0.71446664]
[1730893050622,0.00247557,2638.0,2637.6,0.06735695]
[1730893051350,0.00247557,2638.0,2637.6,3.7913]
[1730893051781,0.00247557,2638.0,2637.7,0.06731418]
[1730893052239,0.00247557,2638.0,2637.7,3.85837418]
[1730893052439,0.00247557,2638.0,2637.7,0.06731418]
[1730893052877,0.00247557,2638.0,2637.5,4.50592664]
[1730893052878,0.00247557,2638.0,2637.5,0.71446664]
[1730893053030,4.55164913,2638.0,2637.5,0.71446664]
[1730893053237,0.23914913,2638.0,2637.6,3.85858695]
[1730893053579,3.79056,2638.2,2637.6,3.85858695]
[1730893054386,3.0,2638.2,2637.6,0.06735695]
[1730893054538,0.796,2638.0,2637.6,0.06735695]
[1730893054737,3.79094,2637.9,2637.2,3.79179]
[1730893054932,3.79105,2637.8,2637.7,0.06731418]
[1730893055255,4.628845,2637.8,2637.0,4.55669]
[1730893055658,0.837795,2637.8,2637.0,0.7646]
[1730893055857,4.34089,2637.9,2637.0,0.7646]
[1730893056065,3.7916,2637.5,2637.0,0.7646]
[1730893056249,3.7916,2637.5,2637.1,0.06519924]
[1730893056785,3.79134,2637.6,2637.1,0.06519924]
[1730893057071,3.79126,2637.7,2637.1,3.85721924]
[1730893057233,0.379126,2637.6,2637.1,3.85721924]
[1730893057873,3.79153,2637.5,2637.1,0.06519924]
[1730893058056,4.170556,2637.6,2637.1,0.06519924]
[1730893058258,4.170546,2637.6,2637.1,0.06519924]
[1730893058585,0.379126,2637.6,2637.1,0.06519924]
[1730893058877,0.379126,2637.6,2637.1,3.85717924]
[1730893059081,4.170466,2637.6,2637.1,0.06519924]
[1730893059285,3.79189,2637.3,2637.1,0.06519924]
[1730893060544,3.7919,2637.2,2637.1,0.06519924]
[1730893060745,0.4170466,2637.5,2637.1,4.58333]
[1730893061080,7.58281,2637.6,2637.1,4.64817643]
[1730893061244,3.79148,2637.5,2637.1,0.85614643]
[1730893061447,3.79163,2637.4,2637.1,0.85614643]
[1730893062377,7.58333,2637.4,2637.1,0.7913]
[1730893062708,0.7559,2637.5,2637.2,0.06480365]
[1730893062882,3.79148,2637.5,2637.2,0.06480365]
[1730893063091,0.379148,2637.4,2636.9,3.79219]
[1730893063258,3.79148,2637.5,2637.0,3.79213]
[1730893063457,3.79134,2637.6,2637.1,4.57983]
[1730893063858,3.79126,2637.7,2637.2,0.06259132]
[1730893064056,3.79118,2637.7,2637.2,0.06259132]
[1730893064274,3.79132,2637.6,2637.2,0.06259132]
[1730893064448,4.170692,2637.5,2637.2,0.06259132]
[1730893065091,3.7912,2637.7,2637.2,3.85442132]
[1730893065455,3.7912,2637.7,2637.2,7.64620132]
[1730893065653,3.7912,2637.7,2637.2,3.85437132]
[1730893066360,3.79132,2637.6,2637.2,3.85437132]
[1730893066563,3.0,2637.9,2637.2,0.06259132]
[1730893066762,3.7917,2637.4,2637.1,0.7878]
[1730893066962,3.7917,2637.4,2637.3,0.05632693]
[1730893067187,3.7917,2637.4,2637.1,0.7878]
[1730893067396,7.58344,2637.4,2637.3,0.05632693]
[1730893067550,3.79148,2637.5,2637.1,0.7878]
[1730893067894,0.379148,2637.4,2637.3,0.05632693]
[1730893068097,4.170868,2637.4,2637.2,0.05636971]
[1730893068256,0.379148,2637.4,2637.3,0.05634944]
[1730893068595,3.79148,2637.5,2637.3,0.05634153]
[1730893068760,3.79148,2637.5,2637.1,0.7878]
[1730893068959,3.79148,2637.5,2637.4,0.05629875]
[1730893069159,3.79148,2637.5,2637.1,0.7878]
[1730893069368,7.58305,2637.5,2637.4,0.05629875]
[1730893069661,3.79177,2637.3,2637.1,0.7878]
[1730893070155,3.79186,2637.3,2637.1,0.7878]
[1730893070915,3.79186,2637.3,2636.8,3.7924]
[1730893071056,3.79186,2637.3,2636.8,0.7775]
[1730893071368,3.79186,2637.3,2636.8,4.56996]
[1730893071801,8.1315047,2638.1,2636.8,4.56996]
[1730893071802,3.79104,2637.8,2636.9,0.85333961]
[1730893071951,3.79104,2637.8,2637.0,0.7775]
[1730893072157,3.79141,2637.6,2637.0,4.56967]
[1730893072390,3.79141,2637.6,2637.1,3.79203]
[1730893072593,3.79141,2637.6,2637.0,0.7775]
[1730893072994,3.79141,2637.6,2637.1,3.79203]
[1730893073164,3.79148,2637.5,2637.0,4.56968]
[1730893073491,0.758289,2637.5,2637.0,0.7775]
[1730893073656,3.79143,2637.6,2637.1,3.79202]
[1730893073852,3.79153,2637.5,2637.0,4.56967]
[1730893074062,3.79153,2637.5,2637.0,0.7775]
[1730893074485,3.79153,2637.5,2637.0,4.56962]
[1730893074697,3.79153,2637.5,2637.1,3.79203]
[1730893074998,3.79104,2637.8,2637.3,3.79165]
[1730893075564,3.79125,2637.7,2637.4,0.05633626]
[1730893075767,7.58255,2637.7,2637.2,3.79189]